bitfinex-derivatives/quotes_ETHF0:USTF0_20250421
["timestamp","ask_amount","ask_price","bid_price","bid_amount"]
[1745211622911,12.8345,1641.5,1641.4,1.7389]
[1745211624013,5.4718,1641.5,1641.4,2.95746]
[1745211624213,3.2078,1641.5,1641.4,2.95746]
[1745211624408,3.2078,1641.5,1641.4,7.95746]
[1745211624615,3.2078,1641.5,1641.4,1.7389]
[1745211624807,3.2078,1641.5,1641.4,2.95746]
[1745211626517,1.7149,1641.6,1641.5,1.21849]
[1745211626717,0.0287,1641.6,1641.5,3.65029]
[1745211627013,6.91783362,1641.7,1641.6,1.21842]
[1745211627313,3.2078,1641.7,1641.6,3.67092]
[1745211627510,7.77773362,1641.8,1641.7,1.21834]
[1745211627815,0.0287,1641.8,1641.7,2.83224]
[1745211628206,3.2078,1641.9,1641.8,1.21827]
[1745211628607,3.2078,1641.9,1641.8,2.03617]
[1745211629805,3.73873362,1642.0,1641.8,2.03617]
[1745211630012,4.95685362,1642.0,1641.9,1.6067]
[1745211630314,1.21822,1641.9,1641.7,1.22746104]
[1745211630515,4.92818362,1642.0,1641.8,1.21822]
[1745211630715,3.2078,1641.9,1641.8,1.21822]
[1745211631019,3.73873362,1642.0,1641.9,1.21819]
[1745211631517,4.92815362,1642.0,1641.8,1.21822]
[1745211632018,3.73873362,1642.0,1641.9,1.21819]
[1745211632610,3.71003362,1642.0,1641.9,6.21819]
[1745211633016,3.71003362,1642.0,1641.9,1.21819]
[1745211633913,6.12803362,1642.0,1641.9,1.21819]
[1745211634109,0.0287,1642.1,1642.0,1.21812]
[1745211636018,1.6449,1642.1,1642.0,1.21812]
[1745211636314,0.0287,1642.1,1642.0,1.21812]
[1745211637417,0.0287,1642.1,1641.7,3.93636104]
[1745211637418,0.0287,1642.1,1641.9,1.21814]
[1745211637614,1.6449,1642.1,1642.0,1.21812]
[1745211638018,0.0287,1642.1,1642.0,1.21812]
[1745211641222,0.0287,1642.1,1642.0,2.02702]
[1745211641921,0.0287,1642.1,1642.0,7.02702]
[1745211646423,0.0287,1642.1,1642.0,2.91192]
[1745211648019,0.0287,1642.1,1642.0,4.60922]
[1745211649619,0.0287,1642.1,1642.0,1.21812]
[1745211650126,0.0287,1642.1,1642.0,2.91542]
[1745211652023,0.0287,1642.1,1642.0,1.21812]
[1745211652828,10.46763362,1642.1,1641.7,0.00914104]
[1745211653123,4.42607,1641.8,1641.7,0.00914104]
[1745211653319,3.2078,1641.8,1641.7,0.00914104]
[1745211653520,3.2078,1641.8,1641.7,1.22748104]
[1745211653921,4.9331,1641.8,1641.7,1.22748104]
[1745211654121,7.1971,1641.8,1641.7,1.22748104]
[1745211654524,12.12540362,1641.8,1641.7,0.00914104]
[1745211654725,17.12540362,1641.8,1641.7,0.00914104]
[1745211654922,1.21841,1641.7,1641.5,1.21848]
[1745211655122,5.7339,1641.6,1641.5,1.21848]
[1745211655323,6.5382,1641.6,1641.5,1.21848]
[1745211656232,3.3304,1641.6,1641.5,1.21848]
[1745211657231,6.5382,1641.6,1641.5,1.21848]
[1745211660432,6.5382,1641.6,1641.4,1.67634104]
[1745211660638,1.6746,1641.5,1641.4,2.89489104]
[1745211663239,1.6746,1641.5,1641.4,1.22769104]
[1745211665446,6.60312362,1641.5,1641.4,0.00914104]
[1745211665645,1.21866,1641.3,1641.1,1.21876]
[1745211665848,1.656,1641.2,1641.1,1.21876]
[1745211666147,3.2078,1641.3,1641.2,1.21871]
[1745211666945,5.7767,1641.3,1641.2,1.21871]
[1745211667143,7.80794,1641.3,1641.1,2.98068104]
[1745211667343,1.7255,1641.2,1641.1,2.98068104]
[1745211669846,1.7255,1641.2,1641.1,1.76194104]
[1745211670144,1.7255,1641.2,1641.1,1.22793104]
[1745211670448,11.65424362,1641.2,1641.1,1e-08]
[1745211671247,8.91824362,1641.2,1641.1,1e-08]
[1745211672148,9.47253362,1641.2,1641.1,1.21879001]
[1745211673345,5.43553362,1641.2,1641.1,1.21879001]
[1745211673648,3.71003362,1641.5,1641.1,8.20780001]
[1745211673844,3.71003362,1641.5,1641.2,3.4096]
[1745211674042,5.30803362,1641.5,1641.4,1.21856]
[1745211675652,4.8416,1641.6,1641.5,1.21849]
[1745211675847,3.2078,1641.6,1641.5,1.21849]
[1745211676744,3.21694103,1641.7,1641.5,2.94069]
[1745211676938,7.73072103,1641.7,1641.5,1.21847]
[1745211677652,6.51234103,1641.7,1641.6,1.21842]
[1745211678345,6.51234103,1641.7,1641.6,2.89032]
[1745211678545,3.21694103,1641.7,1641.6,2.89032]
[1745211678746,0.00914103,1641.7,1641.6,2.89032]
[1745211681757,1.67404103,1641.7,1641.6,2.89032]
[1745211683050,4.88184103,1641.7,1641.6,1.6719]
[1745211683251,4.88184103,1641.7,1641.6,2.89032]
[1745211686462,1.67404103,1641.7,1641.6,2.89032]
[1745211688860,0.00914103,1641.7,1641.6,2.89032]
[1745211702584,1.21842,1641.6,1641.5,3.2078]
[1745211702779,1.21879,1641.1,1641.0,8.14313373]
[1745211702970,1.21886,1641.0,1640.9,10.51989744]
[1745211703168,1.21894,1640.9,1640.8,3.53134381]
[1745211703471,1.21901,1640.8,1640.7,9.76260348]
[1745211703670,6.87241,1640.8,1640.7,9.76260348]
[1745211703880,11.87241,1640.8,1640.7,9.76260348]
[1745211704065,14.13641,1640.8,1640.7,9.76260348]
[1745211707680,17.84644362,1640.8,1640.7,9.76260348]
[1745211709277,1.21908,1640.7,1640.6,0.00914104]
[1745211709484,9.83111362,1640.7,1640.6,0.00914104]
[1745211710287,12.09511362,1640.7,1640.6,0.00914104]
[1745211713388,12.20538264,1640.7,1640.6,0.00914104]
[1745211716184,12.20538639,1640.7,1640.6,0.00914104]
[1745211717390,14.91503362,1640.7,1640.6,0.00914104]
[1745211717690,13.22083362,1640.7,1640.6,1.22830104]
[1745211718785,5.4718,1640.7,1640.6,6.22830104]
[1745211719192,3.2078,1640.7,1640.6,6.22830104]
[1745211719492,3.2078,1640.7,1640.6,1.22830104]
[1745211720285,3.2078,1640.7,1640.6,0.00914104]
[1745211720479,4.8359,1640.7,1640.6,0.00914104]
[1745211720685,3.2078,1640.7,1640.6,1.22830104]
[1745211723596,3.2078,1640.7,1640.6,6.22830104]
[1745211724597,0.00914104,1640.8,1640.7,1.21908]
[1745211724795,12.17458362,1641.2,1641.0,1.21881]
[1745211724988,12.17458362,1641.2,1641.1,1.7104]
[1745211725188,14.43858362,1641.2,1641.1,1.7104]
[1745211725889,13.21983362,1641.2,1641.1,1.7104]
[1745211726301,10.95583362,1641.2,1641.1,1.7104]
[1745211726994,12.17454362,1641.2,1641.1,1.7104]
[1745211727298,1.21883,1641.1,1640.8,2.83595]
[1745211727593,13.21983362,1641.2,1640.9,1.617]
[1745211727796,13.21983362,1641.2,1641.1,1.21879]
[1745211728299,13.21983362,1641.2,1641.1,2.83579]
[1745211728300,10.95583362,1641.2,1641.1,2.83579]
[1745211729399,12.17454362,1641.2,1641.1,1.617]
[1745211729700,13.81874362,1641.2,1641.1,1.617]
[1745211729891,13.81874362,1641.2,1641.0,1.7402]
[1745211730090,1.6986,1641.1,1641.0,3.4633]
[1745211730993,1.6986,1641.1,1641.0,4.68216]
[1745211731198,3.9626,1641.1,1641.0,3.4633]
[1745211731501,3.9626,1641.1,1640.6,0.00914104]
[1745211731700,3.2078,1640.9,1640.7,1.7231]
[1745211731901,8.52974,1640.9,1640.7,1.7231]
[1745211732088,11.2734,1640.9,1640.7,2.94217]
[1745211732293,11.2734,1640.9,1640.8,1.7231]
[1745211732997,9.5748,1640.9,1640.8,2.94211]
[1745211733201,7.3108,1640.9,1640.8,2.94211]
[1745211734707,7.3108,1640.9,1640.8,1.21901]
[1745211734900,7.3108,1640.9,1640.7,2.86405]
[1745211735106,7.3108,1640.9,1640.8,2.86401]
[1745211738000,4.103,1640.9,1640.8,2.86401]
[1745211738205,7.3108,1640.9,1640.8,2.86401]
[1745211739506,3.2078,1640.9,1640.8,2.86401]
[1745211739708,3.2078,1640.9,1640.8,7.86401]
[1745211740706,3.2078,1640.9,1640.8,2.86401]
[1745211744805,2.5468,1641.0,1640.9,1.21894]
[1745211747610,6.91783362,1641.1,1641.0,1.21886]
[1745211747908,3.2078,1641.1,1641.0,1.21886]
[1745211748503,3.2078,1641.1,1641.0,2.94476]
[1745211749005,7.24934753,1641.1,1641.0,2.94476]
[1745211749303,7.24934753,1641.1,1641.0,3.80846]
[1745211751412,4.04154753,1641.1,1641.0,3.80846]
[1745211752097,4.04154753,1641.2,1641.1,1.21879]
[1745211752412,4.04154753,1641.2,1641.1,2.98859]
[1745211752908,8.91174753,1641.2,1641.1,2.98859]
[1745211754111,10.13049753,1641.2,1641.0,2.08253]
[1745211754311,8.91174753,1641.2,1641.0,2.08253]
[1745211754516,8.91174753,1641.2,1641.1,1.7093]
[1745211755306,7.24934753,1641.2,1641.1,2.92809]
[1745211763515,9.27012129,1641.2,1641.1,2.92809]
[1745211764317,10.92462129,1641.2,1641.1,2.92809]
[1745211767023,12.96747486,1641.2,1641.1,2.92809]
[1745211770116,9.75967486,1641.2,1641.1,2.92809]
[1745211771220,1.21881,1641.1,1640.9,1.21891]
[1745211771424,0.8871,1641.0,1640.9,1.21891]
[1745211771923,2.5733,1641.0,1640.9,1.21891]
[1745211772520,11.10198,1641.0,1640.8,2.92156]
[1745211772720,9.8831,1641.0,1640.8,1.7026]
[1745211772915,1.7266,1640.9,1640.8,2.92161]
[1745211776122,11.90693362,1641.0,1640.8,2.92161]
[1745211776327,11.90693362,1641.0,1640.9,2.86274]
[1745211777332,13.63823362,1641.0,1640.9,2.86274]
[1745211777524,6.91783362,1641.0,1640.9,2.86274]
[1745211778133,15.02300848,1641.0,1640.9,2.86274]
[1745211778332,17.58080848,1641.0,1640.9,2.86274]
[1745211779133,15.02300848,1641.0,1640.9,2.86274]
[1745211780334,11.81520848,1641.0,1640.9,2.86274]
[1745211780632,8.37295343,1641.1,1641.0,1.21886]
[1745211780833,8.37295343,1641.1,1641.0,11.12356]
[1745211781031,8.37295343,1641.1,1641.0,16.12356]
[1745211781231,8.37295343,1641.1,1641.0,18.38756]
[1745211782137,1.01633197,1641.1,1641.0,18.38756]
[1745211782940,1.97e-06,1641.1,1641.0,14.28556]
[1745211783142,1.97e-06,1641.1,1641.0,18.38756]
[1745211784238,4.07955575,1641.3,1641.2,1.21871]
[1745211784440,4.07955575,1641.3,1641.2,4.42651]
[1745211785243,4.07955575,1641.3,1641.2,1.21871]
[1745211785438,7.38495575,1641.3,1641.2,1.21871]
[1745211786142,19.14167937,1641.3,1640.5,19.10093423]
[1745211786444,4.42661,1641.1,1640.9,1.21889]
[1745211786636,2.4375,1641.0,1640.9,1.21889]
[1745211789146,2.4375,1641.0,1640.7,1.7348]
[1745211789344,2.4375,1641.0,1640.6,0.00914104]
[1745211789345,9.7832,1640.9,1640.6,0.00914104]
[1745211789647,3.2078,1640.7,1640.6,0.00914104]
[1745211790050,10.6913,1640.7,1640.6,0.00914104]
[1745211790349,12.9553,1640.7,1640.6,0.00914104]
[1745211790648,7.9553,1640.7,1640.6,0.00914104]
[1745211790846,7.9553,1640.7,1640.6,1.22830104]
[1745211791246,5.6913,1640.7,1640.6,1.22830104]
[1745211791547,5.6913,1640.7,1640.6,2.83020104]
[1745211791849,5.6913,1640.7,1640.6,1.22830104]
[1745211792053,5.6913,1640.7,1640.6,0.00914104]
[1745211792054,11.79692207,1640.7,1640.6,0.00914104]
[1745211792349,14.06092207,1640.7,1640.6,0.00914104]
[1745211793035,15.28000207,1640.7,1640.6,0.00914104]
[1745211795352,18.99003569,1640.7,1640.6,0.00914104]
[1745211799553,23.99003569,1640.7,1640.6,1e-08]
[1745211799858,24.1003008,1640.7,1640.6,1e-08]
[1745211800560,24.10030997,1640.7,1640.6,1e-08]
[1745211801856,17.9946879,1640.7,1640.6,1e-08]
[1745211803653,17.99468586,1640.7,1640.6,1e-08]
[1745211805360,17.88441362,1640.7,1640.6,1e-08]
[1745211805562,17.99468515,1640.7,1640.6,1e-08]
[1745211807365,12.99468515,1640.7,1640.6,1e-08]
[1745211808764,12.99468214,1640.7,1640.6,1e-08]
[1745211809063,12.88441362,1640.7,1640.6,1e-08]
[1745211811066,12.99468096,1640.7,1640.6,1e-08]
[1745211812163,19.07071892,1640.7,1640.6,1e-08]
[1745211813366,18.96045158,1640.7,1640.6,1e-08]
[1745211813664,19.07071914,1640.7,1640.6,1e-08]
[1745211813859,18.96045158,1640.7,1640.6,1e-08]
[1745211814058,19.07071904,1640.7,1640.6,1e-08]
[1745211814669,18.96045158,1640.7,1640.6,1e-08]
[1745211814859,19.0707197,1640.7,1640.6,1e-08]
[1745211815059,15.8629197,1640.7,1640.6,1e-08]
[1745211815268,19.0707197,1640.7,1640.6,1e-08]
[1745211816367,19.07071908,1640.7,1640.6,1e-08]
[1745211816667,18.96045158,1640.7,1640.6,1e-08]
[1745211816866,16.47695158,1640.7,1640.6,1e-08]
[1745211817076,20.51995158,1640.7,1640.6,1e-08]
[1745211817367,22.28801918,1640.7,1640.6,1e-08]
[1745211819068,19.08022206,1640.7,1640.6,1e-08]
[1745211819261,22.28802206,1640.7,1640.6,1e-08]
[1745211819866,22.28802327,1640.7,1640.6,1e-08]
[1745211820363,27.28802327,1640.7,1640.6,1e-08]
[1745211821469,29.31336926,1640.7,1640.6,1e-08]
[1745211822071,24.31336926,1640.7,1640.6,1e-08]
[1745211823671,24.20309757,1640.7,1640.6,1e-08]
[1745211823971,24.31337851,1640.7,1640.6,1e-08]
[1745211829077,26.34905507,1640.7,1640.6,1e-08]
[1745211829671,25.12997507,1640.7,1640.0,0.8664]
[1745211829874,4.42733,1640.1,1640.0,1.7275512]
[1745211830174,8.47033,1640.1,1640.0,1.7275512]
[1745211830474,8.47033,1640.1,1640.0,6.7275512]
[1745211832676,8.47033,1640.1,1640.0,1.7275512]
[1745211833066,10.73433,1640.1,1640.0,1.7275512]
[1745211833373,3.04918,1640.0,1639.5,3.2078]
[1745211833574,1.21985,1639.7,1639.5,3.2078]
[1745211833772,4.044,1639.7,1639.1,3.2078]
[1745211833971,4.42774,1639.6,1639.3,1.22012]
[1745211834375,1.21998,1639.5,1639.3,5.00914104]
[1745211835476,3.2078,1639.6,1639.3,0.00914104]
[1745211835477,8.47185,1639.4,1639.3,0.00914104]
[1745211835985,8.47185,1639.4,1639.3,5.00914104]
[1745211836181,8.47185,1639.4,1639.3,0.00914104]
[1745211838184,10.73585,1639.4,1639.3,0.00914104]
[1745211838585,10.73585,1639.4,1639.3,1.72494104]
[1745211839173,8.47185,1639.4,1639.3,1.72494104]
[1745211840086,10.73585,1639.4,1639.3,1.72494104]
[1745211841183,8.47185,1639.4,1639.3,1.72494104]
[1745211849086,10.20725,1639.4,1639.3,1.72494104]
[1745211849286,11.07515,1639.4,1639.3,1.72494104]
[1745211850086,13.33915,1639.4,1639.3,1.72494104]
[1745211852684,10.73585,1639.4,1639.3,1.72494104]
[1745211853292,8.47185,1639.4,1639.3,1.72494104]
[1745211854296,7.2518,1639.4,1639.3,1.72494104]
[1745211854694,8.47185,1639.4,1639.3,1.72494104]
[1745211855284,4.044,1639.4,1639.3,1.72494104]
[1745211855687,5.26405,1639.4,1639.3,1.72494104]
[1745211857094,4.044,1639.4,1639.3,1.72494104]
[1745211857291,4.044,1639.4,1639.3,7.94507104]
[1745211857495,8.47281,1639.5,1639.3,7.94507104]
[1745211857697,8.47281,1639.5,1639.4,1.668]
[1745211857897,8.47281,1639.5,1639.4,2.5867]
[1745211860301,1.22005,1639.4,1639.3,0.00914104]
[1745211860492,4.61405,1639.4,1639.3,0.00914104]
[1745211862303,4.61405,1639.4,1639.3,1.76774104]
[1745211862808,2.4769,1639.4,1639.3,2.98787104]
[1745211863000,3.2078,1639.7,1639.3,9.97554104]
[1745211863201,6.09274824,1639.8,1639.7,1.21983]
[1745211863508,6.08579944,1639.8,1639.7,4.42763]
[1745211863694,2.66326617,1639.8,1639.7,9.42763]
[1745211863899,0.05969617,1639.8,1639.7,19.35563]
[1745211864101,10.13706051,1640.0,1639.8,1.21975]
[1745211864605,4.96226432,1639.9,1639.8,13.86785]
[1745211865198,4.96226432,1639.9,1639.8,16.13185]
[1745211866405,4.96226432,1639.9,1639.8,16.55402185]
[1745211867604,0.00914104,1640.2,1640.1,1.21953]
[1745211870903,0.00914104,1640.2,1640.1,2.87883]
[1745211872100,0.00914104,1640.2,1640.1,11.08663]
[1745211872306,1e-08,1640.3,1640.2,1.21946]
[1745211872603,5.37293362,1640.8,1640.7,1.21908]
[1745211872906,5.37293362,1640.8,1640.4,3.04828]
[1745211872907,5.05,1640.9,1640.8,1.21901]
[1745211873607,4.1227,1640.9,1640.8,1.21901]
[1745211874608,5.8941,1640.9,1640.8,1.21901]
[1745211876101,2.6863,1640.9,1640.8,1.21901]
[1745211879406,2.6863,1640.9,1640.7,0.00914104]
[1745211879610,2.5985,1640.8,1640.7,1.22822104]
[1745211879998,3.81751,1640.8,1640.7,0.00914104]
[1745211880603,7.02531,1640.8,1640.7,0.00914104]
[1745211882509,7.02531,1640.8,1640.7,1.22822104]
[1745211882710,3.81751,1640.8,1640.7,1.22822104]
[1745211886119,3.81751,1640.8,1640.7,0.00914104]
[1745211886508,7.02531,1640.8,1640.7,0.00914104]
[1745211887914,12.02531,1640.8,1640.7,0.00914104]
[1745211888214,9.28931,1640.8,1640.7,0.00914104]
[1745211897215,5.8063,1640.8,1640.7,1.22822104]
[1745211897420,7.02531,1640.8,1640.7,1.22822104]
[1745211898512,3.81751,1640.8,1640.7,1.22822104]
[1745211900023,3.81751,1640.8,1640.7,0.00914104]
[1745211900323,3.81751,1640.8,1640.7,1.77704104]
[1745211901025,7.02531,1640.8,1640.7,1.77704104]
[1745211901416,7.02531,1640.8,1640.7,0.00914104]
[1745211905112,10.8063,1640.8,1640.4,3.2078]
[1745211905317,1.21938,1640.3,1640.1,4.42729]
[1745211905622,6.25572,1640.6,1640.1,4.42729]
[1745211905623,0.9035,1640.2,1640.1,4.42729]
[1745211906619,2.12296,1640.2,1640.0,2.86840104]
[1745211906920,1.21953,1640.1,1640.0,0.00914104]
[1745211907125,5.16993,1640.1,1640.0,0.00914104]
[1745211908021,8.87996362,1640.1,1640.0,0.00914104]
[1745211908223,6.61596362,1640.1,1640.0,0.00914104]
[1745211908426,1.21975,1639.8,1639.6,1.21989]
[1745211908725,1.21975,1639.8,1639.6,2.87609]
[1745211909024,1.21975,1639.8,1639.6,1.6562]
[1745211909226,2.5435,1639.7,1639.6,2.8761]
[1745211909618,3.76333,1639.7,1639.6,1.6562]
[1745211909920,1.2199,1639.6,1639.5,0.00914104]
[1745211910225,0.00914104,1639.8,1639.6,2.84006]
[1745211910426,0.00914104,1639.8,1639.7,2.84003]
[1745211910626,0.00914104,1639.8,1639.7,1.6202]
[1745211910826,1.62254104,1639.8,1639.7,1.6202]
[1745211911329,2.84229104,1639.8,1639.7,1.6202]
[1745211911628,1.62254104,1639.8,1639.7,1.6202]
[1745211911815,2.84229104,1639.8,1639.7,1.6202]
[1745211912022,1.62254104,1639.8,1639.7,2.84003]
[1745211912329,0.00914104,1639.8,1639.7,2.84003]
[1745211916032,1.61924104,1639.8,1639.7,2.84003]
[1745211917631,2.83899104,1639.8,1639.5,3.21694104]
[1745211917934,1.21983,1639.7,1639.5,4.43687104]
[1745211918133,2.5635,1639.6,1639.5,4.43687104]
[1745211918835,3.7834,1639.6,1639.5,0.00914104]
[1745211919836,7.8254,1639.6,1639.5,0.00914104]
[1745211922938,6.6055,1639.6,1639.5,1.22912104]
[1745211923436,2.5635,1639.6,1639.5,1.22912104]
[1745211924138,3.7834,1639.6,1639.5,0.00914104]
[1745211928344,2.5635,1639.6,1639.5,1.22912104]
[1745211931044,3.7834,1639.6,1639.5,1.22912104]
[1745211932247,2.5635,1639.6,1639.5,1.22912104]
[1745211933244,3.7834,1639.6,1639.5,1.22912104]
[1745211933447,2.5635,1639.6,1639.5,1.22912104]
[1745211934951,3.7834,1639.6,1639.5,1.22912104]
[1745211936149,2.5635,1639.6,1639.5,1.22912104]
[1745211938046,3.7834,1639.6,1639.5,1.22912104]
[1745211938945,2.5635,1639.6,1639.5,1.22912104]
[1745211950557,0.8521,1639.6,1639.5,1.22912104]
[1745211950751,0.00914104,1639.8,1639.7,1.21983]
[1745211951061,0.00914104,1639.8,1639.7,4.42763]
[1745211951262,0.00914104,1639.8,1639.7,6.69163]
[1745211951451,0.00914104,1639.8,1639.7,8.31043]
[1745211951854,0.00914104,1639.8,1639.7,9.12363]
[1745211955061,1e-08,1639.8,1639.7,14.12363]
[1745211957666,1e-08,1639.8,1639.7,9.12363]
[1745211957860,1e-08,1639.8,1639.7,8.31043]
[1745211958065,1e-08,1639.8,1639.7,6.04643]
[1745211962461,1e-08,1639.8,1639.7,4.42763]
[1745211962662,0.94090001,1639.8,1639.7,4.42763]
[1745211968775,0.94090001,1639.8,1639.7,1.21983]
[1745211969372,1e-08,1639.8,1639.7,2.91073]
[1745211969575,6.07083839,1640.0,1639.9,1.21968]
[1745211970274,6.07083839,1640.0,1639.9,3.72408]
[1745211970779,6.96617943,1640.1,1640.0,1.2196]
[1745211971080,6.96617943,1640.1,1640.0,2.9105]
[1745211972576,6.96617943,1640.1,1640.0,1.2196]
[1745211974978,0.89534104,1640.1,1640.0,1.2196]
[1745211977677,2.58794104,1640.1,1640.0,1.2196]
[1745211980174,0.89534104,1640.1,1640.0,2.8389]
[1745211981380,2.59514104,1640.1,1640.0,2.8389]
[1745211982279,0.89534104,1640.1,1640.0,2.8389]
[1745211990087,0.89534104,1640.1,1640.0,5.1029]
[1745211991188,0.89534104,1640.1,1640.0,2.8389]
[1745211994698,0.89534104,1640.1,1640.0,6.0467]
[1745211996393,2.55714104,1640.1,1640.0,6.0467]
[1745211996897,2.55714104,1640.1,1640.0,1.2196]
[1745212001601,0.89534104,1640.1,1640.0,1.2196]
[1745212002303,2.67074104,1640.1,1640.0,1.2196]
[1745212008904,0.89534104,1640.1,1640.0,4.4274]
[1745212009207,0.89534104,1640.1,1640.0,6.6914]
[1745212009608,0.89534104,1640.1,1640.0,8.329]
[1745212009903,0.00914104,1640.1,1640.0,8.329]
[1745212010109,7.06263839,1640.3,1640.2,1.21946]
[1745212010309,6.07083839,1640.3,1640.2,4.42726]
[1745212010701,6.07083839,1640.3,1640.2,6.75146]
[1745212011209,6.07083839,1640.3,1640.2,9.01546]
[1745212014012,8.07143629,1640.4,1640.3,1.21938]
[1745212014013,0.00914104,1640.4,1640.3,1.21938]
[1745212014310,0.00914104,1640.4,1640.3,7.02368]
[1745212015099,0.00914104,1640.4,1640.3,9.28768]
[1745212015611,1.03e-06,1640.4,1640.3,9.28768]
[1745212022214,1.03e-06,1640.4,1640.3,12.49548]
[1745212027924,1.03e-06,1640.4,1640.3,9.28768]
[1745212028223,1.03e-06,1640.4,1640.3,12.49548]
[1745212032721,1.0001,1640.6,1640.5,1.21923]
[1745212032917,1.0001,1640.6,1640.5,4.42703]
[1745212033227,1.0001,1640.6,1640.5,6.69103]
[1745212033417,1.0001,1640.6,1640.5,8.45153]
[1745212034524,3.7127,1640.6,1640.5,8.45153]
[1745212036532,2.0096,1640.6,1640.5,8.45153]
[1745212036724,1.0001,1640.6,1640.5,8.45153]
[1745212037825,0.00914104,1640.7,1640.5,8.45153]
[1745212038032,0.00914104,1640.7,1640.6,6.93256]
[1745212039531,1.7727,1640.9,1640.8,1.21901]
[1745212039831,1.7727,1640.9,1640.8,4.42681]
[1745212040231,1.7727,1640.9,1640.8,6.69081]
[1745212041131,2.7283,1640.9,1640.8,6.69081]
[1745212044224,1.01864103,1641.0,1640.9,1.21894]
[1745212044431,1.01864103,1641.0,1640.9,6.90194]
[1745212045135,1.01864103,1641.0,1640.9,9.16594]
[1745212045932,1.6779,1641.3,1640.9,9.16594]
[1745212046136,0.65925897,1641.3,1641.2,4.42651]
[1745212046333,0.65925897,1641.3,1641.2,8.46051]
[1745212046734,0.9386,1641.4,1641.3,1.21864]
[1745212047037,6.07083839,1641.8,1641.7,1.21834]
[1745212047241,7.00973839,1641.8,1641.7,1.21834]
[1745212047537,12.00973839,1641.8,1641.7,1.21834]
[1745212047739,7.00973839,1641.8,1641.7,1.21834]
[1745212049639,7.00973839,1641.8,1641.7,4.42614]
[1745212049853,7.00973839,1641.8,1641.7,1.21834]
[1745212050045,9.67473839,1641.8,1641.7,1.21834]
[1745212050739,9.67473839,1641.8,1641.7,4.42614]
[1745212051141,3.6039,1641.8,1641.7,4.42614]
[1745212052732,0.9015,1641.8,1641.7,4.42614]
[1745212052933,2.613,1642.0,1641.9,1.21819]
[1745212053133,2.613,1642.0,1641.9,4.42599]
[1745212053630,2.613,1642.0,1641.9,6.08759]
[1745212054239,0.9912,1642.0,1641.9,6.08759]
[1745212063949,0.9912,1642.0,1641.9,3.2078]
[1745212064251,8.2552,1642.0,1641.8,4.42602]
[1745212064442,2.6828,1641.9,1641.8,3.2078]
[1745212064643,2.6828,1641.9,1641.8,4.42607]
[1745212065951,1.2183,1641.8,1641.6,0.00914104]
[1745212066152,0.9054,1641.7,1641.6,1.22756104]
[1745212066540,7.6399,1641.7,1641.6,1.22756104]
[1745212068144,9.9039,1641.7,1641.6,1.22756104]
[1745212069555,4.9039,1641.7,1641.6,1.22756104]
[1745212070448,9.83227362,1641.7,1641.6,0.00914104]
[1745212070753,18.86327362,1641.7,1641.6,0.00914104]
[1745212070955,13.86327362,1641.7,1641.6,0.00914104]
[1745212071343,1.21853,1641.5,1641.3,1.21862]
[1745212071549,0.9425,1641.4,1641.3,1.21862]
[1745212071751,2.5914,1641.4,1641.3,1.21862]
[1745212072150,6.07398,1641.4,1641.2,1.21865]
[1745212072363,2.6286,1641.3,1641.0,3.2078]
[1745212072549,1.6929,1641.2,1641.1,0.00914104]
[1745212072755,1.21891,1641.0,1640.7,1.21903]
[1745212072959,2.6354,1640.9,1640.8,1.21901]
[1745212073155,2.6354,1640.9,1640.6,3.2078]
[1745212073359,1.6929,1640.8,1640.4,12.92732425]
[1745212073655,1.6929,1640.8,1640.6,1.21912]
[1745212073858,5.7239,1640.8,1640.6,1.21912]
[1745212074249,1.6929,1640.7,1640.6,1.21912]
[1745212080158,4.9355,1640.8,1640.7,1.21908]
[1745212080964,6.6591,1640.8,1640.6,4.42691]
[1745212081163,1.6908,1640.7,1640.5,1.74314104]
[1745212081365,1.21916,1640.6,1640.5,0.00914104]
[1745212081859,2.90996,1640.6,1640.5,0.00914104]
[1745212082055,1.6908,1640.6,1640.5,0.00914104]
[1745212082251,3.9548,1640.6,1640.5,0.00914104]
[1745212083057,5.17396,1640.6,1640.5,0.00914104]
[1745212083963,3.9548,1640.6,1640.5,1.22837104]
[1745212084264,1.6908,1640.6,1640.5,1.22837104]
[1745212085164,3.9548,1640.6,1640.5,1.22837104]
[1745212086765,5.17396,1640.6,1640.5,1.22837104]
[1745212086965,5.17396,1640.6,1640.5,0.00914104]
[1745212087166,3.9548,1640.6,1640.5,1.22837104]
[1745212088768,5.17396,1640.6,1640.5,0.00914104]
[1745212090568,5.17396,1640.6,1640.5,1.22837104]
[1745212091269,3.9548,1640.6,1640.5,1.22837104]
[1745212091770,5.17396,1640.6,1640.5,1.22837104]
[1745212091968,5.17396,1640.6,1640.5,0.00914104]
[1745212092170,5.17396,1640.6,1640.5,1.22837104]
[1745212092470,3.9548,1640.6,1640.5,1.22837104]
[1745212092770,5.17396,1640.6,1640.5,1.22837104]
[1745212092970,3.9548,1640.6,1640.5,1.22837104]
[1745212093173,3.9548,1640.6,1640.5,2.88257104]
[1745212093365,5.17396,1640.6,1640.5,2.88257104]
[1745212094167,1.6908,1640.6,1640.5,2.88257104]
[1745212094472,2.90996,1640.6,1640.5,2.88257104]
[1745212095172,1.6908,1640.6,1640.5,2.88257104]
[1745212095673,2.5967,1640.6,1640.5,2.88257104]
[1745212096564,3.71003362,1640.7,1640.6,1.21916]
[1745212096772,3.71003362,1640.7,1640.6,2.86096]
[1745212098276,4.92911362,1640.7,1640.6,2.86096]
[1745212098575,9.81711362,1640.7,1640.6,2.86096]
[1745212098778,6.60931362,1640.7,1640.6,2.86096]
[1745212100274,2.89928,1640.7,1640.6,2.86096]
[1745212100475,1.21916,1640.6,1640.5,1.22833104]
[1745212100675,3.91496,1640.6,1640.5,1.22833104]
[1745212100876,2.6958,1640.6,1640.5,2.84853104]
[1745212101775,3.91496,1640.6,1640.5,2.84853104]
[1745212102878,2.6958,1640.6,1640.5,2.84853104]
[1745212105179,3.91496,1640.6,1640.5,2.84853104]
[1745212105374,2.6958,1640.6,1640.5,2.84853104]